bitfinex/quotes_SOLUSD_20241218
["timestamp","ask_amount","ask_price","bid_price","bid_amount"]
[1734563615298,22.61111138,206.08,205.99,22.61111138]
[1734563615821,0.9098932,206.18,206.07,22.61111138]
[1734563616025,22.61111138,206.18,206.1,22.61111138]
[1734563616511,22.61111138,206.2,206.12,22.61111138]
[1734563617986,22.61111138,206.18,206.1,22.61111138]
[1734563620481,22.61111138,206.2,206.12,22.61111138]
[1734563620689,7.6114,206.26,206.14,22.61111138]
[1734563620690,22.61111138,206.24,206.14,22.61111138]
[1734563620916,22.61111138,206.24,206.16,22.61111138]
[1734563622810,22.61111138,206.24,206.14,0.35890715]
[1734563622811,22.61111138,206.3,206.22,22.61111138]
[1734563624025,22.61111138,206.32,206.24,22.61111138]
[1734563624232,8.18234585,206.33,206.22,22.61111138]
[1734563624233,22.61111138,206.3,206.22,22.61111138]
[1734563625700,0.90899217,206.29,206.22,22.61111138]
[1734563625896,22.61111138,206.28,206.22,22.61111138]
[1734563626119,22.61111138,206.28,206.2,22.61111138]
[1734563626300,22.61111138,206.23,206.17,22.61111138]
[1734563626587,22.61111138,206.23,206.13,4.86302766]
[1734563626588,22.61111138,206.24,206.16,22.61111138]
[1734563627612,22.61111138,206.25,206.18,22.61111138]
[1734563627995,22.61111138,206.21,206.14,22.61111138]
[1734563629024,22.61111138,206.25,206.18,22.61111138]
[1734563629211,22.61111138,206.27,206.19,22.61111138]
[1734563629407,22.61111138,206.27,206.19,22.96973396]
[1734563629589,22.61111138,206.25,206.18,22.61111138]
[1734563629796,22.61111138,206.25,206.17,22.61111138]
[1734563632615,22.61111138,206.23,206.15,22.61111138]
[1734563632790,0.9093385,206.22,206.15,22.61111138]
[1734563633213,22.61111138,206.23,206.15,22.61111138]
[1734563633716,22.61111138,206.25,206.17,22.61111138]
[1734563634199,22.61111138,206.27,206.19,22.61111138]
[1734563635826,22.61111138,206.29,206.21,22.61111138]
[1734563636619,0.90903805,206.28,206.21,22.61111138]
[1734563636819,22.61111138,206.27,206.19,22.61111138]
[1734563637025,22.61111138,206.25,206.17,22.61111138]
[1734563637322,0.90930283,206.24,206.17,22.61111138]
[1734563637700,23.776884,206.22,206.15,22.61111138]
[1734563637918,23.52050174,206.21,206.13,22.61111138]
[1734563638621,22.61111138,206.21,206.13,22.61111138]
[1734563639518,22.61111138,206.21,206.11,4.5044]
[1734563639704,22.61111138,206.23,206.15,22.61111138]
[1734563641824,23.52039778,206.25,206.17,22.61111138]
[1734563642706,22.61111138,206.25,206.17,22.61111138]
[1734563643225,22.61111138,206.27,206.19,22.61111138]
[1734563645134,22.61111138,206.25,206.19,22.61111138]
[1734563645308,22.61111138,206.23,206.17,22.61111138]
[1734563645513,0.90927277,206.22,206.15,22.61111138]
[1734563645713,22.61111138,206.23,206.15,22.61111138]
[1734563646838,22.61111138,206.16,206.12,0.35890823]
[1734563647144,22.61111138,206.16,206.06,314.95404731]
[1734563647145,22.61111138,206.14,206.02,7.4847]
[1734563647322,22.61111138,206.12,206.04,22.61111138]
[1734563648123,22.61111138,206.14,206.06,22.61111138]
[1734563648327,22.61111138,206.16,206.08,22.61111138]
[1734563648725,0.90954598,206.15,206.08,22.61111138]
[1734563649042,22.61111138,206.16,206.08,22.61111138]
[1734563649343,22.61111138,206.18,206.1,22.61111138]
[1734563649543,0.90951084,206.19,206.12,22.61111138]
[1734563650846,22.61111138,206.22,206.14,22.61111138]
[1734563651065,22.61111138,206.25,206.18,22.61111138]
[1734563651369,29.87111138,206.27,206.2,22.61111138]
[1734563651661,7.26,206.27,206.2,22.61111138]
[1734563651822,0.90910702,206.28,206.21,22.61111138]
[1734563652743,0.90910702,206.28,206.19,22.61111138]
[1734563652744,22.61111138,206.26,206.19,22.61111138]
[1734563653557,22.61111138,206.27,206.2,22.61111138]
[1734563654232,23.5202184,206.28,206.21,22.61111138]
[1734563655337,22.61111138,206.29,206.21,22.61111138]
[1734563656172,22.61111138,206.27,206.2,22.61111138]
[1734563656333,22.61111138,206.25,206.17,22.61111138]
[1734563656529,0.90925452,206.24,206.17,22.61111138]
[1734563656744,22.61111138,206.25,206.17,22.61111138]
[1734563657648,0.90922292,206.24,206.17,22.61111138]
[1734563657848,22.61111138,206.25,206.17,22.61111138]
[1734563658347,22.61111138,206.23,206.15,22.61111138]
[1734563658535,0.90931407,206.22,206.15,22.61111138]
[1734563658736,22.61111138,206.23,206.15,22.61111138]
[1734563659149,0.90930997,206.22,206.15,22.61111138]
[1734563659330,22.61111138,206.23,206.15,22.61111138]
[1734563660170,22.61111138,206.25,206.15,22.61111138]
[1734563660962,0.90918673,206.24,206.15,22.61111138]
[1734563662279,22.61111138,206.25,206.17,22.61111138]
[1734563662954,0.90924253,206.28,206.17,22.61111138]
[1734563662955,22.61111138,206.27,206.19,22.61111138]
[1734563664295,0.90913691,206.26,206.19,22.61111138]
[1734563664458,22.61111138,206.25,206.19,22.61111138]
[1734563665753,0.90915187,206.24,206.17,42.61111138]
[1734563665954,22.61111138,206.23,206.11,4.7443]
[1734563666176,0.90936235,206.22,206.14,22.61111138]
[1734563666768,22.61111138,206.23,206.14,22.61111138]
[1734563666977,0.90931197,206.22,206.14,22.61111138]
[1734563669198,22.61111138,206.21,206.12,22.61111138]
[1734563669777,22.61111138,206.21,206.13,23.776884]
[1734563669969,22.61111138,206.21,206.14,22.61111138]
[1734563670170,22.61111138,206.23,206.14,22.61111138]
[1734563670382,22.61111138,206.23,206.16,22.61111138]
[1734563670574,22.61111138,206.23,206.14,20.0]
[1734563670753,22.61111138,206.19,206.15,23.776884]
[1734563670957,22.61111138,206.19,206.14,20.0]
[1734563671158,22.61111138,206.15,206.01,7.57255655]
[1734563671361,22.61111138,206.09,206.05,30.0]
[1734563671570,22.61111138,206.09,206.01,22.61111138]
[1734563672267,22.61111138,206.11,206.03,22.61111138]
[1734563672665,22.61111138,206.11,206.03,0.12549]
[1734563672986,42.61111138,206.13,206.07,0.12549]
[1734563673207,42.61111138,206.13,206.04,0.36002791]
[1734563673492,22.61111138,206.09,206.02,23.776884]
[1734563673666,0.90966347,206.12,206.05,22.61111138]
[1734563673870,42.61111138,206.13,206.05,22.61111138]
[1734563674076,42.61111138,206.13,206.03,0.36020924]
[1734563674077,20.0,206.13,206.08,23.776884]
[1734563674281,22.61111138,206.13,206.08,23.776884]
[1734563674592,22.61111138,206.13,206.06,23.902374]
[1734563674784,23.52079791,206.15,206.06,23.902374]
[1734563674987,23.52079791,206.15,206.07,22.61111138]
[1734563675201,23.52079791,206.15,206.08,23.776884]
[1734563675366,22.61111138,206.13,206.06,23.902374]
[1734563676173,22.61111138,206.11,206.06,23.776884]
[1734563676365,22.61111138,206.11,206.04,23.776884]
[1734563677890,22.61111138,206.13,206.05,22.73660138]
[1734563678090,22.61111138,206.13,206.06,23.776884]
[1734563678893,22.61111138,206.11,206.06,23.776884]
[1734563679194,22.61111138,206.11,206.04,23.902374]
[1734563679580,23.52089054,206.15,206.08,0.12549]
[1734563679779,7.3707,206.17,206.0,22.61111138]
[1734563679780,22.61111138,206.17,206.1,23.902374]
[1734563680089,22.61111138,206.2,206.14,0.12549]
[1734563680398,22.61111138,206.2,206.14,23.902374]
[1734563680601,22.61111138,206.2,206.14,0.12549]
[1734563682571,22.61111138,206.18,206.12,23.902374]
[1734563682783,22.61111138,206.18,206.12,0.12549]
[1734563683076,22.61111138,206.18,206.11,23.776884]
[1734563683287,22.61111138,206.14,206.07,22.61111138]
[1734563684897,22.61111138,206.14,206.08,23.776884]
[1734563685087,22.61111138,206.12,206.04,4.5866]
[1734563685276,22.61111138,206.12,206.03,22.61111138]
[1734563685995,22.61111138,206.12,206.04,0.12549]
[1734563686598,22.61111138,206.12,206.04,23.902374]
[1734563686796,22.61111138,206.1,206.04,23.902374]
[1734563690114,22.61111138,206.08,206.03,23.902374]
[1734563690299,22.61111138,206.09,206.03,23.902374]
[1734563691006,22.61111138,206.1,206.03,23.902374]
[1734563691215,22.61111138,206.1,206.03,46.51348538]
[1734563692010,22.61111138,206.07,206.03,23.902374]
[1734563692315,22.61111138,206.07,205.99,4.5866]
[1734563692604,22.61111138,206.07,206.02,23.776884]
[1734563692812,22.61111138,206.09,206.01,22.61111138]
[1734563693724,1.1,206.16,206.07,0.12549]
[1734563693725,22.61111138,206.14,206.07,0.12549]
[1734563694003,14.12064701,206.15,206.07,14.12064701]
[1734563694189,14.12064701,206.14,206.07,14.12064701]
[1734563694591,14.12064701,206.15,206.08,23.902374]
[1734563694907,14.12064701,206.15,206.08,38.02302101]
[1734563695300,14.12064701,206.15,206.08,23.902374]
[1734563695498,0.90989441,206.16,206.06,14.12064701]
[1734563695499,14.12064701,206.13,206.07,23.902374]
[1734563696092,22.59420567,206.14,206.07,46.49657967]
[1734563698627,22.59420567,206.14,206.07,51.00167967]
[1734563698838,22.59420567,206.18,206.12,23.902374]
[1734563700514,22.59420567,206.22,206.16,23.902374]
[1734563700818,22.59420567,206.22,206.14,23.776884]
[1734563701033,22.59420567,206.2,206.14,23.776884]
[1734563701935,22.59420567,206.2,206.15,0.12549]
[1734563702810,22.59420567,206.22,206.17,0.12549]
[1734563704416,22.59420567,206.22,206.16,23.776884]
[1734563704620,22.59420567,206.2,206.14,23.776884]
[1734563705032,22.59420567,206.2,206.11,22.59420567]
[1734563705944,22.59420567,206.22,206.14,0.12549]
[1734563706146,22.59420567,206.22,206.14,0.48435827]
[1734563706647,22.59420567,206.22,206.14,24.26124227]
[1734563707743,22.59420567,206.25,206.18,46.49657967]
[1734563708638,22.59420567,206.25,206.18,23.902374]
[1734563709520,22.59420567,206.24,206.18,23.902374]
[1734563710040,22.59420567,206.24,206.18,0.12549]
[1734563711447,22.59420567,206.24,206.17,24.13549486]
[1734563711750,22.09420567,206.24,206.17,24.13549486]
[1734563712246,22.59420567,206.24,206.17,24.13549486]
[1734563714529,22.59420567,206.25,206.18,0.12549]
[1734563714845,8.64553399,206.29,206.17,46.72970053]
[1734563714846,22.59420567,206.29,206.22,22.59420567]
[1734563715046,22.59420567,206.32,206.25,22.71969567]
[1734563715365,22.59420567,206.34,206.27,22.59420567]
[1734563715743,22.59420567,206.35,206.28,22.95211291]
[1734563715930,0.5990772,206.36,206.29,46.49657967]
[1734563715931,23.19328287,206.36,206.29,46.49657967]
[1734563716265,0.5990772,206.36,206.31,46.49657967]
[1734563716444,0.5990772,206.36,206.32,22.95164166]
[1734563716650,0.5990772,206.36,206.33,0.12549]
[1734563716858,0.5990772,206.36,206.35,22.71969567]
[1734563717054,0.5990772,206.36,206.35,46.49657967]
[1734563718826,0.5990772,206.36,206.35,58.63567967]
[1734563721169,22.59420567,206.52,206.44,0.12549]
[1734563721341,22.59420567,206.52,206.45,22.59420567]
[1734563721671,29.66740567,206.54,206.46,46.8528704]
[1734563721875,22.59420567,206.56,206.49,23.776884]
[1734563722032,23.19328287,206.57,206.49,22.95009577]
[1734563722334,0.5990772,206.57,206.56,22.71969567]
[1734563722533,0.5990772,206.57,206.56,46.85182953]
[1734563723529,7.72e-05,206.57,206.56,74.0353352]
[1734563723794,22.59420567,206.72,206.61,0.12549]
[1734563723934,22.59420567,206.72,206.65,22.71969567]
[1734563724132,22.59420567,206.73,206.66,46.7255225]
[1734563724455,22.59420567,206.74,206.67,22.71969567]
[1734563724657,22.59420567,206.75,206.68,46.72528377]
[1734563724859,22.59420567,206.75,206.68,22.94839977]
[1734563725061,22.59420567,206.69,206.62,22.59420567]
[1734563725262,22.59420567,206.66,206.6,20.0]
[1734563725462,22.59420567,206.66,206.58,22.94907437]
[1734563725666,22.59420567,206.65,206.58,22.94907437]
[1734563726048,22.59420567,206.66,206.58,22.94907437]
[1734563726251,22.59420567,206.67,206.6,22.59420567]
[1734563726451,22.59420567,206.68,206.61,22.94903544]
[1734563727163,22.59420567,206.72,206.65,0.12549]
[1734563727465,22.59420567,206.76,206.7,23.902374]
[1734563728075,7.3242,206.77,206.7,23.902374]
[1734563728076,29.91840567,206.77,206.7,23.902374]
[1734563728273,29.91840567,206.77,206.7,46.49657967]
[1734563728652,29.91840567,206.77,206.7,23.902374]
[1734563728852,29.91840567,206.77,206.7,24.25642607]
[1734563729065,0.5990772,206.78,206.72,22.71969567]
[1734563729264,0.5990772,206.78,206.74,22.59420567]
[1734563729465,0.5990772,206.78,206.74,22.94791715]
[1734563731673,23.19328287,206.78,206.7,22.59420567]
[1734563731865,22.59420567,206.76,206.69,22.59420567]
[1734563733088,22.59420567,206.77,206.7,22.71969567]
[1734563733289,23.19328287,206.78,206.72,0.12549]
[1734563733501,0.5990772,206.78,206.72,46.49657967]
[1734563733863,0.5990772,206.78,206.74,0.12549]
[1734563735110,0.5990772,206.78,206.76,0.12549]
[1734563735316,0.5990772,206.78,206.76,22.71969567]
[1734563735511,0.5990772,206.78,206.77,23.776884]
[1734563735714,0.5990772,206.78,206.77,23.902374]
[1734563736215,0.5990772,206.78,206.77,0.12549]
[1734563736416,0.5990772,206.78,206.72,42.59420567]
[1734563736607,0.5990772,206.78,206.73,23.776884]
[1734563737419,0.5990772,206.78,206.76,0.12549]
[1734563738598,0.5990772,206.78,206.73,46.72492806]
[1734563738812,0.5990772,206.78,206.73,22.94804406]
[1734563739020,0.5990772,206.78,206.73,0.35383839]
[1734563739322,22.59420567,206.77,206.69,22.59420567]
[1734563739498,22.59420567,206.74,206.66,22.94799918]
[1734563739701,22.59420567,206.73,206.65,22.59420567]
[1734563740322,22.59420567,206.71,206.64,0.35440773]
[1734563740509,22.59420567,206.72,206.64,22.9486134]
[1734563740897,22.59420567,206.72,206.65,0.12549]
[1734563741101,22.59420567,206.72,206.65,23.776884]
[1734563741312,22.59420567,206.71,206.63,22.59420567]
[1734563741630,22.59420567,206.67,206.6,0.3546003]
[1734563741833,22.59420567,206.67,206.59,22.59420567]
[1734563742707,22.59420567,206.7,206.64,0.12549]
[1734563743601,22.59420567,206.69,206.64,23.776884]
[1734563743927,22.59420567,206.68,206.63,0.12549]
[1734563744905,0.9072359,206.71,206.63,0.12549]
[1734563744906,22.59420567,206.69,206.63,0.12549]
[1734563746363,22.59420567,206.68,206.63,0.12549]
[1734563747744,22.59420567,206.69,206.61,46.49657967]
[1734563747954,22.59420567,206.66,206.61,23.902374]
[1734563748111,22.59420567,206.65,206.59,23.776884]
[1734563748426,22.59420567,206.68,206.62,0.12549]
[1734563748606,22.59420567,206.68,206.62,23.902374]
[1734563749221,22.59420567,206.67,206.62,23.902374]
[1734563749426,22.59420567,206.68,206.61,23.902374]
[1734563749638,22.59420567,206.67,206.61,23.902374]
[1734563749810,22.59420567,206.66,206.61,0.12549]
[1734563750012,22.59420567,206.65,206.59,0.12549]
[1734563750229,22.59420567,206.66,206.59,22.71969567]
[1734563750539,22.59420567,206.66,206.61,0.12549]
[1734563750953,22.59420567,206.69,206.63,0.12549]
[1734563751162,34.68920567,206.7,206.63,0.12549]
[1734563751460,22.59420567,206.69,206.63,0.12549]
[1734563751833,22.59420567,206.72,206.65,0.12549]
[1734563752565,22.59420567,206.71,206.65,0.12549]
[1734563753141,22.59420567,206.69,206.63,23.776884]
[1734563753660,22.59420567,206.69,206.62,23.902374]
[1734563754127,22.59420567,206.69,206.62,23.776884]
[1734563754333,22.59420567,206.64,206.55,22.94906212]
[1734563754528,22.59420567,206.64,206.55,22.59420567]
[1734563754730,22.59420567,206.6,206.52,22.59420567]
[1734563754955,22.59420567,206.59,206.52,22.59420567]
[1734563755257,22.59420567,206.61,206.54,0.12549]
[1734563755559,22.59420567,206.66,206.59,0.12549]
[1734563755961,12.0965,206.67,206.59,0.12549]
[1734563755962,22.59420567,206.65,206.59,0.12549]
[1734563756130,22.59420567,206.66,206.59,0.12549]
[1734563756334,22.59420567,206.66,206.59,22.71969567]
[1734563756557,22.59420567,206.67,206.61,0.12549]
[1734563756756,22.59420567,206.7,206.63,23.902374]
[1734563756956,22.59420567,206.74,206.68,0.12549]
[1734563757159,70.15749867,206.75,206.68,23.902374]
[1734563757459,47.563293,206.75,206.68,46.49657967]
[1734563758435,47.563293,206.75,206.7,23.902374]
[1734563758657,47.563293,206.75,206.7,46.49657967]
[1734563758857,47.563293,206.75,206.72,23.902374]
[1734563759060,47.563293,206.75,206.74,0.12549]
[1734563759233,47.563293,206.75,206.74,46.49657967]
[1734563760645,47.563293,206.75,206.74,23.902374]
[1734563760844,47.563293,206.75,206.72,23.776884]
[1734563761061,47.563293,206.75,206.74,0.12549]
[1734563761850,47.563293,206.75,206.71,0.12549]
[1734563762163,47.563293,206.75,206.71,23.902374]
[1734563762540,70.15749867,206.75,206.69,23.776884]
[1734563762740,70.15749867,206.75,206.66,27.30690567]
[1734563762960,22.59420567,206.7,206.62,22.59420567]
[1734563763179,22.59420567,206.66,206.63,30.0]
[1734563763739,22.59420567,206.64,206.63,30.0]
[1734563764043,22.59420567,206.64,206.58,0.12549]
[1734563764359,22.59420567,206.69,206.61,22.59420567]
[1734563764533,22.59420567,206.69,206.62,0.35471421]
[1734563765245,22.59420567,206.69,206.63,0.12549]
[1734563766378,22.59420567,206.7,206.63,0.12549]
[1734563766574,22.59420567,206.72,206.65,23.902374]
[1734563766747,22.59420567,206.72,206.67,0.12549]
[1734563767058,22.59420567,206.73,206.67,0.12549]
[1734563769077,22.59420567,206.71,206.66,0.35441524]
[1734563769258,22.59420567,206.7,206.64,0.35473256]
[1734563769465,22.59420567,206.71,206.64,22.94893823]
[1734563769953,22.59420567,206.68,206.61,22.59420567]
[1734563770155,22.59420567,206.68,206.6,42.59420567]
[1734563770376,22.59420567,206.69,206.61,22.71969567]
[1734563770576,22.59420567,206.7,206.63,0.12549]
[1734563770883,22.59420567,206.69,206.61,22.94919058]
[1734563771556,22.59420567,206.69,206.63,0.12549]
[1734563771756,22.59420567,206.69,206.62,23.776884]
[1734563772278,22.59420567,206.67,206.62,23.776884]
[1734563772449,22.59420567,206.67,206.6,23.776884]
[1734563773672,0.9073752,206.66,206.6,23.776884]
[1734563773992,22.59420567,206.65,206.6,0.12549]
[1734563774166,22.59420567,206.65,206.56,22.59420567]
[1734563774909,22.59420567,206.69,206.61,22.71969567]
[1734563775582,22.59420567,206.69,206.63,0.12549]
[1734563779302,23.50147172,206.71,206.63,0.12549]
[1734563779472,22.59420567,206.71,206.63,0.12549]
[1734563781172,22.59420567,206.71,206.62,24.13171265]
[1734563781173,22.59420567,206.73,206.67,0.12549]
[1734563782278,70.15749867,206.75,206.69,0.12549]
[1734563782696,47.563293,206.75,206.73,0.12549]
[1734563782997,70.15749867,206.75,206.61,12.0996]
[1734563783178,70.15749867,206.75,206.68,23.776884]
[1734563783703,70.15749867,206.75,206.69,0.12549]
[1734563785400,22.59420567,206.73,206.69,0.12549]
[1734563785601,22.59420567,206.71,206.63,52.59420567]
[1734563785983,22.59420567,206.71,206.59,7.2316]
[1734563785984,22.59420567,206.69,206.61,22.59420567]
[1734563786179,0.90719168,206.68,206.59,22.59420567]
[1734563786605,22.59420567,206.67,206.59,22.59420567]
[1734563786786,0.90739018,206.66,206.59,22.59420567]
[1734563787387,29.70300567,206.71,206.62,0.12549]
[1734563787601,29.70300567,206.71,206.64,0.12549]
[1734563787786,29.70300567,206.71,206.64,23.902374]
[1734563789882,30.61015154,206.71,206.64,23.902374]
[1734563791425,12.0911,206.77,206.66,23.902374]
[1734563791426,22.59420567,206.73,206.66,23.902374]
[1734563792007,0.90709742,206.72,206.66,23.902374]
[1734563792209,23.5013238,206.73,206.66,23.902374]
[1734563793213,0.90710507,206.72,206.66,23.902374]
[1734563793513,22.59420567,206.71,206.66,23.902374]
[1734563793697,22.59420567,206.71,206.66,23.776884]
[1734563793901,22.59420567,206.71,206.63,22.59420567]
[1734563793902,0.90713098,206.7,206.64,23.776884]
[1734563794908,0.90713098,206.7,206.63,22.59420567]
[1734563796527,22.59420567,206.73,206.66,0.12549]
[1734563796702,22.59420567,206.73,206.66,23.902374]
[1734563797821,0.90709694,206.72,206.66,23.902374]
[1734563799023,47.563293,206.75,206.7,22.71969567]
[1734563799215,47.563293,206.75,206.72,46.49657967]
[1734563799404,47.563293,206.75,206.74,0.12549]
[1734563800124,47.563293,206.75,206.72,23.902374]
[1734563800625,47.563293,206.75,206.74,66.49657967]
[1734563803103,47.563293,206.75,206.74,96.49657967]
[1734563804126,47.563293,206.75,206.74,52.59420567]
[1734563804322,47.563293,206.75,206.72,22.59420567]
[1734563804723,47.563293,206.75,206.73,0.12549]
[1734563805023,47.563293,206.75,206.72,22.59420567]
[1734563805731,47.563293,206.75,206.74,22.71969567]
[1734563806122,47.563293,206.75,206.74,46.49657967]
[1734563810152,47.563293,206.75,206.74,62.49657967]
[1734563811007,47.563293,206.75,206.74,46.49657967]
[1734563811174,47.563293,206.75,206.71,0.35389745]
[1734563811372,47.563293,206.75,206.7,22.59420567]
[1734563811681,47.563293,206.75,206.69,22.59420567]
[1734563811875,0.9069925,206.74,206.68,22.59420567]
[1734563812074,23.50119817,206.74,206.67,22.59420567]
[1734563812410,22.59420567,206.73,206.65,22.59420567]
[1734563812703,0.90720487,206.72,206.67,0.12549]
[1734563812998,0.90720487,206.72,206.66,22.59420567]
[1734563813199,0.90712907,206.74,206.67,22.59420567]
[1734563813414,47.563293,206.75,206.68,22.71969567]
[1734563813569,47.563293,206.75,206.7,0.12549]
[1734563813773,48.47027114,206.75,206.7,0.12549]
[1734563814388,48.47028138,206.75,206.7,0.12549]
[1734563814589,47.563293,206.75,206.7,0.12549]
[1734563814798,24.41552175,206.75,206.7,0.12549]
[1734563817790,47.00972742,206.75,206.7,0.12549]
[1734563818134,47.00972742,206.75,206.68,23.902374]
[1734563818832,22.59420567,206.71,206.65,23.776884]
[1734563819120,22.59420567,206.71,206.65,0.12549]
[1734563819726,22.59420567,206.73,206.65,0.12549]
[1734563820633,22.59420567,206.73,206.65,23.902374]
[1734563821298,0.907187,206.72,206.65,23.902374]
[1734563821746,23.50139267,206.72,206.65,23.902374]
[1734563821926,0.907187,206.72,206.65,46.49657967]
[1734563822457,22.59420567,206.71,206.65,23.902374]
[1734563822638,23.50148863,206.7,206.64,23.776884]
[1734563822815,0.90728296,206.7,206.65,0.12549]
[1734563823007,22.59420567,206.72,206.65,0.12549]
[1734563823204,23.50854913,206.75,206.68,22.71969567]
[1734563823409,23.50854913,206.75,206.7,0.12549]
[1734563823639,23.50854913,206.75,206.72,0.12549]
[1734563823950,23.50854913,206.75,206.73,23.776884]
[1734563824313,23.50854913,206.75,206.74,14.15995292]
[1734563824512,23.50854913,206.75,206.74,37.93683692]
[1734563826047,23.50854913,206.75,206.74,76.34233736]
[1734563826216,6.71801118,206.75,206.74,76.34233736]
[1734563826420,0.5990772,206.78,206.74,76.69580067]
[1734563826634,0.5990772,206.78,206.77,42.56545336]
[1734563826826,0.5990772,206.78,206.77,66.34233736]
[1734563827712,0.5990772,206.78,206.77,66.6956399]
[1734563828109,30.08876336,206.9,206.78,0.12549]
[1734563828336,30.08876336,206.9,206.77,66.6956399]
[1734563828337,23.34626547,206.89,206.84,0.12549]
[1734563828950,23.34626547,206.89,206.82,22.43996336]
[1734563829157,22.43996336,206.89,206.83,0.12549]
[1734563829315,30.9951663,206.9,206.83,22.56545336]
[1734563829949,7.6488,206.9,206.85,0.12549]
[1734563830116,7.6488,206.9,206.85,23.902374]
[1734563830319,30.99503596,206.9,206.85,23.902374]
[1734563830544,30.99503596,206.9,206.84,23.902374]
[1734563830739,7.6488,206.9,206.84,46.34233736]
[1734563832061,22.43996336,206.88,206.82,23.776884]
[1734563832357,22.43996336,206.92,206.85,22.56545336]
[1734563832537,22.43996336,206.92,206.87,0.12549]
[1734563832860,0.90625889,206.91,206.87,0.12549]
[1734563833052,22.43996336,206.92,206.87,0.12549]
[1734563833364,0.90627721,206.91,206.87,0.12549]
[1734563834365,22.43996336,206.9,206.87,0.12549]
[1734563834659,22.43996336,206.89,206.86,23.776884]
[1734563834829,22.43996336,206.88,206.81,22.43996336]
[1734563835031,22.43996336,206.88,206.83,0.12549]
[1734563835231,22.43996336,206.88,206.81,22.43996336]
[1734563835565,22.43996336,206.89,206.82,22.43996336]
[1734563835944,0.90632985,206.88,206.82,22.43996336]
[1734563836148,22.43996336,206.89,206.82,22.43996336]
[1734563836567,22.43996336,206.89,206.84,0.12549]
[1734563837893,22.43996336,206.9,206.84,0.12549]
[1734563838347,22.43996336,206.91,206.84,22.56545336]
[1734563838671,22.43996336,206.97,206.91,0.12549]
[1734563838842,22.43996336,206.94,206.91,0.12549]
[1734563839240,22.43996336,206.95,206.91,0.12549]
[1734563839552,23.34597443,206.96,206.91,0.12549]
[1734563839753,22.43996336,206.97,206.91,0.12549]
[1734563840083,22.43996336,206.96,206.91,0.12549]
[1734563840868,22.43996336,206.97,206.91,0.12549]
[1734563841844,22.43996336,206.96,206.91,0.12549]
[1734563842556,22.43996336,206.97,206.91,0.12549]
[1734563842861,23.34600446,206.96,206.88,22.43996336]
[1734563843039,22.43996336,206.95,206.88,22.43996336]
[1734563843235,0.90619767,206.94,206.88,22.43996336]
[1734563843461,22.43996336,206.93,206.85,22.43996336]
[1734563843660,22.43996336,206.91,206.83,22.43996336]
[1734563843859,23.34635366,206.9,206.83,22.43996336]
[1734563844363,22.43996336,206.87,206.8,22.43996336]
[1734563844571,0.9065452,206.86,206.8,22.43996336]
[1734563845063,23.34650856,206.86,206.79,22.43996336]
[1734563845268,0.9065452,206.86,206.8,22.56545336]
[1734563845461,0.9065452,206.86,206.82,0.12549]
[1734563845655,7.5987,206.9,206.85,0.12549]
[1734563845973,0.90636706,206.91,206.85,23.902374]
[1734563846136,0.90629926,206.92,206.86,22.43996336]
[1734563846346,0.90629926,206.93,206.86,22.43996336]
[1734563846540,23.34626262,206.93,206.87,23.776884]
[1734563846785,22.43996336,206.92,206.86,0.12549]
[1734563848178,14.01734344,206.92,206.86,0.12549]
[1734563849184,14.01734344,206.94,206.88,0.12549]
[1734563849382,14.01734344,206.93,206.88,23.902374]
[1734563849543,14.01734344,206.94,206.88,0.12549]
[1734563851992,14.01734344,206.94,206.87,37.79422744]
[1734563852195,0.90616117,206.93,206.85,14.01734344]
[1734563853606,0.90616117,206.93,206.87,0.12549]
[1734563854490,14.01734344,206.92,206.86,23.776884]
[1734563854674,14.01734344,206.9,206.83,14.01734344]
[1734563854991,14.01734344,206.9,206.84,0.12549]
[1734563855190,7.5987,206.95,206.88,0.12549]
[1734563855370,14.01734344,206.97,206.9,14.01734344]
[1734563855574,14.92362724,206.98,206.9,14.01734344]
[1734563855981,14.92362724,206.98,206.92,0.12549]
[1734563856186,14.92362724,206.98,206.92,23.902374]
[1734563856673,14.01734344,206.97,206.91,23.902374]
[1734563857060,0.90602076,206.96,206.91,23.902374]
[1734563857295,14.9233642,206.96,206.9,23.776884]
[1734563858093,14.01734344,206.95,206.9,23.776884]
[1734563858281,0.90615428,206.94,206.89,37.91971744]
[1734563858666,14.92349769,206.95,206.89,0.12549]
[1734563861998,14.01734344,206.94,206.89,0.12549]
[1734563862285,14.92349542,206.94,206.89,0.12549]
[1734563862484,14.01734344,206.94,206.89,0.12549]
[1734563862687,14.01734344,206.95,206.89,0.12549]
[1734563863192,0.90614974,206.94,206.89,0.12549]
[1734563863404,14.92349387,206.95,206.89,0.12549]
[1734563866599,14.01734344,206.94,206.89,0.12549]